bitfinex/quotes_SOLUSD_20251116
["timestamp","ask_amount","ask_price","bid_price","bid_amount"]
[1763335849244,100.0,137.98,137.97,7.88966688]
[1763335849465,109.67578907,137.98,137.96,7.98966688]
[1763335849674,109.41578907,137.98,137.96,7.98966688]
[1763335850480,9.41578907,137.97,137.96,7.98966688]
[1763335851053,100.0,137.98,137.97,9.78882769]
[1763335851256,100.0,137.98,137.97,10.46882769]
[1763335851486,100.0,137.98,137.97,9.78882769]
[1763335851696,100.0,137.98,137.97,19.88461676]
[1763335851976,100.0,137.99,137.98,9.78882769]
[1763335852192,100.0,137.99,137.98,19.88461676]
[1763335852480,50.0,137.99,137.98,19.88461676]
[1763335852684,100.0,138.01,138.0,32.44002769]
[1763335852983,100.0,138.01,138.0,41.85581676]
[1763335853584,100.0,138.01,138.0,58.29145811]
[1763335855463,100.0,138.01,138.0,42.53581676]
[1763335855665,100.0,138.01,138.0,9.78882769]
[1763335855875,100.0,138.01,138.0,19.88461676]
[1763335856062,100.0,138.02,138.01,9.78882769]
[1763335856270,100.0,138.02,138.01,34.96261068]
[1763335856654,100.0,138.02,138.01,35.64261068]
[1763335857180,100.0,138.02,138.01,42.53581676]
[1763335857559,100.0,138.02,138.01,58.28740719]
[1763335858178,100.0,138.02,138.01,42.53581676]
[1763335858481,100.0,138.02,138.01,58.28444381]
[1763335858670,100.0,138.02,138.01,42.53581676]
[1763335858873,50.0,138.02,138.01,42.53581676]
[1763335859077,50.0,138.02,138.01,19.88461676]
[1763335859259,100.0,138.03,138.01,39.55518007]
[1763335859581,50.0,138.03,138.02,19.88461676]
[1763335859766,100.0,138.05,138.04,32.44002769]
[1763335859961,100.0,138.05,138.04,57.59380709]
[1763335860170,100.0,138.05,138.04,42.53581676]
[1763335860755,22.6512,138.13,138.05,9.78882769]
[1763335860756,100.0,138.06,138.05,9.78882769]
[1763335861078,100.0,138.06,138.05,35.62527223]
[1763335861387,100.0,138.04,138.03,9.41578907]
[1763335861555,100.0,138.04,138.03,19.20461676]
[1763335861757,100.0,138.05,138.04,9.78882769]
[1763335861965,100.0,138.05,138.04,19.20461676]
[1763335862167,100.0,138.02,138.01,9.78882769]
[1763335862368,100.0,138.02,137.97,0.67]
[1763335862369,100.0,137.99,137.97,10.08578907]
[1763335862774,100.0,137.97,137.96,0.1]
[1763335863079,100.0,137.97,137.96,9.88882769]
[1763335863253,100.0,137.97,137.96,19.97461676]
[1763335863453,100.0,137.97,137.96,9.88882769]
[1763335863659,100.0,137.97,137.96,10.55882769]
[1763335863968,100.0,137.97,137.96,0.77]
[1763335864167,100.0,137.97,137.96,9.88882769]
[1763335864567,100.0,137.98,137.97,9.78882769]
[1763335864776,100.0,137.98,137.97,19.87461676]
[1763335864985,100.0,138.01,138.0,32.44002769]
[1763335865293,100.0,138.01,138.0,41.85581676]
[1763335865794,100.0,138.02,138.01,9.78882769]
[1763335866297,100.0,138.02,137.96,25.3065822]
[1763335866298,100.0,137.98,137.96,25.3065822]
[1763335866472,100.0,137.98,137.96,15.89079313]
[1763335866667,100.0,137.98,137.97,9.78882769]
[1763335866859,100.0,137.98,137.96,0.1]
[1763335867865,109.41578907,137.98,137.96,0.1]
[1763335868064,109.41578907,137.98,137.95,25.57962082]
[1763335868065,50.0,137.96,137.95,11.87126854]
[1763335868285,109.41578907,137.96,137.95,5.93949766]
[1763335868490,122.6512,137.94,137.93,0.2]
[1763335868789,132.06698907,137.94,137.93,0.2]
[1763335869479,143.85581676,137.94,137.93,0.2]
[1763335871774,153.27160583,137.94,137.93,0.2]
[1763335872682,190.21239352,137.94,137.93,0.2]
[1763335872888,190.21239352,137.94,137.83,0.2]
[1763335872889,100.0,137.84,137.83,0.2]
[1763335873093,109.41578907,137.84,137.83,0.2]
[1763335873469,121.20461676,137.84,137.83,0.2]
[1763335873689,166.70329332,137.84,137.83,0.2]
[1763335873900,166.70329332,137.84,137.79,0.19997089]
[1763335873901,111.78882769,137.8,137.79,0.19997089]
[1763335874109,130.62040583,137.8,137.79,0.19997089]
[1763335874306,109.41578907,137.8,137.79,0.19997089]
[1763335874587,111.41578907,137.8,137.79,0.19997089]
[1763335874786,121.83751629,137.8,137.79,0.19997089]
[1763335874994,111.78882769,137.8,137.79,0.19997089]
[1763335875198,121.83751629,137.8,137.79,0.19997089]
[1763335876605,110.0486886,137.8,137.79,0.19997089]
[1763335876810,119.83751629,137.8,137.79,0.19997089]
[1763335877125,110.0486886,137.8,137.79,0.19997089]
[1763335878207,119.83751629,137.8,137.79,0.19997089]
[1763335878522,121.83751629,137.8,137.79,0.19997089]
[1763335878892,111.78882769,137.8,137.79,0.19997089]
[1763335879091,121.83751629,137.8,137.79,0.19997089]
[1763335879723,110.0486886,137.8,137.79,0.19997089]
[1763335880390,100.0,137.8,137.79,0.90997089]
[1763335880591,100.0,137.8,137.79,10.69879858]
[1763335880838,100.0,137.8,137.79,0.90997089]
[1763335881487,110.0486886,137.8,137.79,0.19997089]
[1763335882393,119.83751629,137.8,137.79,0.19997089]
[1763335882710,121.83751629,137.8,137.79,0.19997089]
[1763335883329,121.83751629,137.8,137.79,3e-08]
[1763335883530,111.78882769,137.8,137.79,3e-08]
[1763335883697,158.7997951,137.8,137.79,3e-08]
[1763335884218,158.7997951,137.8,137.73,0.2]
[1763335884219,102.0,137.74,137.73,0.2]
[1763335884427,121.83751629,137.74,137.73,0.2]
[1763335885000,100.0,137.74,137.73,0.2]
[1763335885198,110.0486886,137.74,137.73,0.2]
[1763335886793,132.6998886,137.74,137.73,0.2]
[1763335887294,5.71420444,137.95,137.73,0.2]
[1763335887295,100.0,137.77,137.76,22.6512]
[1763335887522,100.0,137.74,137.73,0.2]
[1763335887710,110.0486886,137.74,137.73,0.2]
[1763335888399,132.6998886,137.74,137.73,0.2]
[1763335888621,122.6512,137.74,137.73,0.2]
[1763335888827,132.6998886,137.74,137.73,0.2]
[1763335889842,122.6512,137.74,137.73,0.91]
[1763335890048,100.0,137.74,137.73,20.74751629]
[1763335890408,10.0486886,137.81,137.73,20.74751629]
[1763335890717,100.0,137.76,137.75,19.83751629]
[1763335890925,100.0,137.74,137.73,0.2]
[1763335891235,100.0,137.74,137.73,9.98882769]
[1763335891533,100.0,137.74,137.73,10.64882769]
[1763335892107,100.0,137.74,137.73,0.86]
[1763335892304,100.0,137.74,137.73,0.2]
[1763335892510,100.0,137.74,137.73,10.64882769]
[1763335892820,100.0,137.74,137.73,0.2]
[1763335893022,100.0,137.74,137.73,0.86]
[1763335893718,132.6998886,137.74,137.73,0.2]
[1763335893928,100.0,137.74,137.73,0.2]
[1763335894141,110.0486886,137.74,137.73,0.2]
[1763335894308,119.83751629,137.74,137.73,0.2]
[1763335894507,121.83751629,137.74,137.73,0.2]
[1763335894932,120.70137873,137.74,137.73,0.2]
[1763335898516,11.78882769,137.73,137.72,5e-08]
[1763335899050,20.70137873,137.73,137.72,5e-08]
[1763335899935,8.91255104,137.73,137.72,5e-08]
[1763335900845,17.44776584,137.73,137.72,5e-08]
[1763335902041,15.44776584,137.73,137.72,5e-08]
[1763335902223,17.44776584,137.73,137.72,5e-08]
[1763335902421,5.65893815,137.73,137.72,5e-08]
[1763335902945,23.10670399,137.73,137.72,5e-08]
[1763335904445,5.65893815,137.73,137.72,5e-08]
[1763335905021,15.44776584,137.73,137.72,5e-08]
[1763335905249,23.10670399,137.73,137.72,5e-08]
[1763335906428,100.0,137.64,137.63,0.2]
[1763335906626,105.65893815,137.64,137.63,0.2]
[1763335906851,100.0,137.64,137.63,9.98882769]
[1763335907366,100.0,137.64,137.63,15.64776584]
[1763335908338,100.0,137.64,137.63,0.2]
[1763335909051,100.0,137.64,137.63,23.44478993]
[1763335909251,100.0,137.64,137.63,27.51903438]
[1763335910044,100.0,137.64,137.63,15.64776584]
[1763335910450,128.31013815,137.64,137.63,0.2]
[1763335910625,122.6512,137.64,137.63,0.2]
[1763335910828,128.31013815,137.64,137.63,0.2]
[1763335911230,128.31013815,137.64,137.63,8.10128553]
[1763335911558,128.31013815,137.64,137.63,0.2]
[1763335911559,106.31893815,137.64,137.63,0.2]
[1763335912366,106.31893815,137.64,137.59,0.2]
[1763335912367,105.65893815,137.6,137.59,0.2]
[1763335912529,122.6512,137.58,137.57,7.94341577]
[1763335912725,122.6512,137.54,137.53,7.94341577]
[1763335912963,128.31013815,137.54,137.53,7.94341577]
[1763335913331,100.0,137.52,137.51,11.8519283]
[1763335913656,100.0,137.52,137.51,0.42]
[1763335914154,22.6512,137.56,137.51,15.86776584]
[1763335914365,100.0,137.53,137.52,10.20882769]
[1763335914538,100.0,137.53,137.52,25.99962082]
[1763335914862,100.0,137.53,137.52,10.20882769]
[1763335915056,100.0,137.53,137.52,25.99962082]
[1763335916335,100.0,137.53,137.52,10.20882769]
[1763335916649,100.0,137.53,137.52,26.13113637]
[1763335916854,100.0,137.53,137.52,10.20882769]
[1763335917167,100.0,137.53,137.52,15.86776584]
[1763335917337,100.0,137.51,137.5,19.87056331]
[1763335917535,100.0,137.51,137.5,15.64776584]
[1763335917755,22.6512,137.55,137.5,15.64776584]
[1763335917957,100.0,137.55,137.54,15.44776584]
[1763335918263,5.65893815,137.62,137.54,35.53832915]
[1763335918566,100.0,137.55,137.54,9.78882769]
[1763335918758,100.0,137.55,137.54,15.44776584]
[1763335919067,100.0,137.55,137.54,15.86776584]
[1763335919361,100.0,137.55,137.54,10.20882769]
[1763335919537,100.0,137.55,137.54,15.86776584]
[1763335919735,100.0,137.53,137.52,25.32950146]
[1763335919941,100.0,137.53,137.52,9.78882769]
[1763335920134,100.0,137.53,137.52,26.14132596]
[1763335920441,100.0,137.53,137.52,32.86002769]
[1763335920639,100.0,137.53,137.52,10.20882769]
[1763335920875,100.0,137.53,137.52,26.13918738]
[1763335921050,0.7,137.74,137.52,10.20882769]
[1763335921368,50.0,137.59,137.58,32.44002769]
[1763335921572,50.0,137.59,137.58,25.69557727]
[1763335921872,100.0,137.6,137.59,9.78882769]
[1763335922158,100.0,137.6,137.59,10.20882769]
[1763335922383,100.0,137.56,137.55,15.90674958]
[1763335922568,100.0,137.56,137.55,9.78882769]
[1763335922755,100.0,137.56,137.55,10.20882769]
[1763335922945,100.0,137.56,137.55,15.86776584]
[1763335923146,100.0,137.56,137.55,9.78882769]
[1763335923345,100.0,137.56,137.55,6.07893815]
[1763335923534,100.0,137.57,137.56,9.78882769]
[1763335923739,100.0,137.57,137.56,15.44776584]
[1763335924137,5.65893815,137.65,137.56,15.44776584]
[1763335924446,100.0,137.63,137.62,9.78882769]
[1763335924663,105.65893815,137.63,137.62,9.78882769]
[1763335924872,100.0,137.63,137.62,9.78882769]
[1763335925371,105.65893815,137.63,137.61,11.92928616]
[1763335925548,100.0,137.63,137.62,22.13811385]
[1763335925753,105.65893815,137.63,137.62,21.71972665]
[1763335926162,105.65893815,137.63,137.61,11.93089896]
[1763335926367,100.0,137.61,137.6,11.93089896]
[1763335926549,100.0,137.61,137.53,0.42]
[1763335926550,106.35893815,137.61,137.59,7.96857684]
[1763335926746,12.0178763,137.6,137.59,7.96857684]
[1763335926957,12.0178763,137.6,137.57,7.24857684]
[1763335926958,122.6512,137.58,137.57,7.24857684]
[1763335927152,128.31013815,137.58,137.57,7.24857684]
[1763335927357,100.0,137.53,137.52,11.93089896]
[1763335927562,105.65893815,137.53,137.51,0.67]
[1763335927768,105.65893815,137.53,137.51,12.63959069]
[1763335927971,100.0,137.53,137.52,10.45882769]
[1763335929963,100.0,137.54,137.53,9.78882769]
[1763335930445,100.0,137.54,137.53,10.45882769]
[1763335931074,0.7,137.64,137.53,16.11776584]
[1763335931256,0.7,137.64,137.58,11.95593187]
[1763335931257,100.0,137.59,137.58,11.95593187]
[1763335931464,122.6512,137.57,137.56,11.95593187]
[1763335931654,100.0,137.55,137.54,11.95593187]
[1763335931975,122.6512,137.53,137.51,11.95593187]
[1763335932171,100.0,137.51,137.5,11.65593187]
[1763335932383,100.0,137.51,137.49,21.44475956]
[1763335932384,105.65893815,137.51,137.49,21.44475956]
[1763335932548,100.0,137.51,137.5,0.67]
[1763335932951,100.0,137.49,137.48,10.65882769]
[1763335933872,100.0,137.49,137.48,16.31776584]
[1763335934077,100.0,137.49,137.48,10.65882769]
[1763335934285,105.65893815,137.49,137.48,9.98882769]
[1763335934453,105.65893815,137.49,137.48,0.2]
[1763335935368,100.0,137.49,137.48,0.87]
[1763335935672,100.0,137.49,137.48,0.2]
[1763335935986,100.0,137.49,137.48,0.87]
[1763335936651,100.0,137.49,137.48,0.2]
[1763335936853,100.0,137.49,137.48,16.77582695]
[1763335937050,100.0,137.49,137.48,16.31776584]
[1763335937284,100.0,137.49,137.48,10.65882769]
[1763335937454,100.0,137.49,137.48,32.30225495]
[1763335937657,100.0,137.49,137.48,10.65882769]
[1763335937855,100.0,137.49,137.48,26.64336042]
[1763335938358,100.0,137.49,137.48,9.98882769]
[1763335938567,100.0,137.49,137.48,10.65882769]
[1763335938873,100.0,137.5,137.49,9.78882769]
[1763335939056,100.0,137.5,137.49,16.11776584]
[1763335939262,100.0,137.5,137.49,25.78117946]
[1763335939461,100.0,137.5,137.49,9.78882769]
[1763335939664,100.0,137.5,137.49,10.45882769]
[1763335940182,100.0,137.5,137.49,9.78882769]
[1763335940389,100.0,137.5,137.49,10.45882769]
[1763335940556,100.0,137.5,137.49,9.78882769]
[1763335941061,100.0,137.5,137.49,10.45882769]
[1763335941259,100.0,137.5,137.49,16.11776584]
[1763335941457,100.0,137.5,137.49,32.11011761]
[1763335941682,100.0,137.5,137.49,16.11776584]
[1763335941875,100.0,137.5,137.49,32.10864322]
[1763335942357,100.0,137.5,137.49,10.45882769]
[1763335942675,100.0,137.5,137.48,16.19087738]
[1763335942885,5.65893815,137.49,137.48,0.2]
[1763335943258,122.6512,137.5,137.48,0.2]
[1763335943677,100.0,137.5,137.48,0.2]
[1763335944073,100.0,137.5,137.49,15.44776584]
[1763335944384,100.0,137.5,137.49,31.43864322]
[1763335944571,100.0,137.5,137.49,16.11776584]
[1763335944765,2.0,137.67,137.49,38.76896584]
[1763335944967,5.65893815,137.7,137.56,15.44776584]
[1763335944968,100.0,137.57,137.56,15.44776584]
[1763335945165,100.0,137.57,137.56,9.78882769]
[1763335946579,23.3112,137.61,137.54,25.81335394]
[1763335946580,100.0,137.55,137.54,25.81335394]
[1763335946781,100.0,137.55,137.54,9.78882769]
[1763335947001,100.0,137.55,137.52,5.65893815]
[1763335947002,100.0,137.53,137.52,16.02452625]
[1763335947210,100.0,137.51,137.5,25.81335394]
[1763335947364,100.0,137.51,137.5,5.65893815]
[1763335947562,100.0,137.49,137.48,29.659391]
[1763335947795,100.0,137.49,137.48,35.31832915]
[1763335948096,100.0,137.49,137.48,15.64776584]
[1763335948293,100.0,137.49,137.48,16.31776584]
[1763335948661,100.0,137.52,137.51,22.6512]
[1763335948859,100.0,137.52,137.51,38.76896584]
[1763335949283,100.0,137.52,137.51,33.11002769]
[1763335949481,100.0,137.52,137.51,38.76896584]
[1763335949804,100.0,137.52,137.51,10.45882769]
[1763335949999,100.0,137.52,137.51,16.11776584]
[1763335951299,100.0,137.52,137.51,25.84435286]
[1763335951998,100.0,137.52,137.51,9.78882769]
[1763335952300,100.0,137.52,137.51,25.84435286]
[1763335952671,100.7,137.52,137.51,9.78882769]
[1763335952974,100.0,137.52,137.51,9.78882769]
[1763335953894,100.0,137.5,137.49,25.84435286]
[1763335954493,100.7,137.5,137.49,9.78882769]
[1763335954696,100.0,137.5,137.49,16.10776584]
[1763335954906,100.0,137.5,137.49,19.92067417]
[1763335955066,100.0,137.51,137.5,9.78882769]
[1763335955266,100.0,137.51,137.5,19.26067417]
[1763335955686,100.0,137.51,137.5,36.02244149]
[1763335955887,100.0,137.51,137.5,25.89059501]
[1763335956102,100.0,137.51,137.5,35.36244149]
[1763335956287,100.0,137.51,137.5,25.89059501]
[1763335956506,100.0,137.51,137.5,36.02244149]
[1763335956685,100.0,137.51,137.5,19.92067417]
[1763335957010,0.7,137.62,137.5,19.92067417]
[1763335957168,100.7,137.62,137.6,12.06972391]
[1763335957494,100.7,137.62,137.61,12.06972391]
[1763335957495,110.17184648,137.62,137.61,12.06972391]
[1763335957702,100.0,137.62,137.61,12.06972391]
[1763335957878,100.0,137.6,137.59,25.8817929]
[1763335958394,100.0,137.6,137.59,26.5417929]
[1763335958703,100.0,137.6,137.59,10.44882769]
[1763335958914,100.0,137.6,137.59,19.92067417]
[1763335959079,100.0,137.6,137.59,42.57187417]
[1763335960486,100.0,137.63,137.62,32.44002769]
[1763335960676,50.0,137.64,137.63,9.78882769]
[1763335960876,50.0,137.65,137.63,39.96467785]
[1763335961089,50.0,137.64,137.63,29.8271071]
[1763335961681,50.0,137.64,137.63,10.44882769]
[1763335962184,50.0,137.64,137.63,19.92067417]
[1763335962378,50.0,137.64,137.63,16.01584039]
[1763335962574,50.0,137.64,137.63,9.78882769]
[1763335962987,100.0,137.62,137.61,16.01584039]
[1763335963177,100.0,137.62,137.61,9.78882769]
[1763335963908,100.0,137.62,137.61,35.2847077]
[1763335964411,100.0,137.62,137.61,9.78882769]
[1763335964887,100.7,137.62,137.61,9.78882769]
[1763335965198,100.0,137.62,137.61,9.78882769]
[1763335966603,100.0,137.62,137.61,19.92067417]
[1763335967205,100.0,137.62,137.61,35.28689752]
[1763335967590,100.0,137.62,137.61,19.26067417]
[1763335967786,100.0,137.62,137.61,9.78882769]
[1763335968600,100.0,137.62,137.61,19.26067417]
[1763335968783,100.0,137.62,137.61,9.78882769]
[1763335969507,100.0,137.59,137.58,9.78882769]
[1763335969706,100.0,137.56,137.55,16.02622335]
[1763335969884,100.0,137.54,137.53,25.49806983]
[1763335970085,100.0,137.54,137.53,25.81505104]
[1763335970305,100.0,137.54,137.53,16.02622335]
[1763335970696,100.0,137.54,137.53,25.81505104]
[1763335971009,100.0,137.54,137.53,35.28689752]
[1763335971389,100.0,137.54,137.53,25.81505104]
[1763335971790,100.0,137.55,137.54,9.78882769]
[1763335972013,100.0,137.55,137.54,42.57187417]
[1763335972214,0.7,137.67,137.57,9.78882769]
[1763335972392,100.0,137.58,137.57,9.78882769]
[1763335972587,0.7,137.67,137.57,29.8271071]
[1763335972790,100.0,137.58,137.57,29.8271071]
[1763335973010,100.0,137.58,137.57,9.78882769]
[1763335973616,100.0,137.58,137.57,19.92067417]
[1763335974214,0.7,137.7,137.61,9.78882769]
[1763335974417,100.0,137.62,137.61,9.78882769]
[1763335974593,0.7,137.7,137.64,22.6512]
[1763335974790,100.0,137.65,137.64,48.43529997]
[1763335975011,100.0,137.65,137.64,32.44002769]
[1763335975222,100.0,137.65,137.64,33.10002769]
[1763335975507,100.0,137.65,137.64,49.08355746]
[1763335975888,100.0,137.66,137.65,9.78882769]
[1763335976292,100.0,137.66,137.65,19.26067417]
[1763335976916,100.0,137.66,137.65,9.78882769]
[1763335977226,100.0,137.64,137.63,9.78882769]
[1763335977520,100.0,137.64,137.63,19.26067417]
[1763335978292,100.0,137.64,137.63,19.92067417]
[1763335978487,50.0,137.64,137.63,32.44002769]
[1763335978691,50.0,137.64,137.56,28.63954503]
[1763335978692,50.0,137.64,137.62,15.97353887]
[1763335978693,100.0,137.64,137.62,15.97353887]
[1763335978898,0.71,137.78,137.63,10.13184648]
[1763335979194,50.0,137.62,137.61,19.95860591]
[1763335979448,50.0,137.65,137.64,22.6512]
[1763335979724,50.0,137.63,137.62,20.61860591]
[1763335979952,50.0,137.66,137.65,22.6512]
[1763335980340,50.0,137.66,137.65,0.68]
[1763335980631,50.0,137.69,137.68,32.44002769]
[1763335980929,50.0,137.69,137.68,57.8701324]
[1763335980930,100.0,137.69,137.68,57.8701324]
[1763335981088,100.0,137.7,137.69,9.78882769]
[1763335981293,100.0,137.7,137.69,35.2189324]
[1763335981508,100.0,137.7,137.69,19.94067417]
[1763335981708,50.0,137.7,137.69,19.94067417]
[1763335981917,100.0,137.7,137.69,35.8989324]
[1763335982412,100.0,137.7,137.69,10.46882769]
[1763335982611,100.0,137.7,137.69,19.94067417]
[1763335982828,0.1,137.77,137.72,32.44002769]
[1763335982829,50.0,137.74,137.72,32.44002769]
[1763335983034,0.61,137.85,137.69,10.15184648]
[1763335983035,50.0,137.8,137.76,32.44002769]
[1763335983201,10.08184648,137.89,137.76,32.44002769]
[1763335983202,50.0,137.78,137.76,61.87048008]
[1763335983412,100.0,137.78,137.77,26.33834329]
[1763335983722,100.0,137.78,137.77,21.70494691]
[1763335984016,100.68,137.78,137.77,7.61802371]
[1763335984193,100.0,137.75,137.74,21.70494691]
[1763335984394,100.0,137.75,137.72,11.91611922]
[1763335984395,100.0,137.73,137.72,11.91611922]
[1763335984706,100.0,137.73,137.72,9.78882769]
[1763335985223,100.0,137.69,137.67,25.34136208]
[1763335985519,100.0,137.69,137.68,9.78882769]
[1763335985717,0.58,137.8,137.68,19.94067417]
[1763335985929,50.0,137.74,137.73,9.78882769]
[1763335986337,50.0,137.75,137.73,9.78882769]
[1763335986338,100.0,137.78,137.77,32.44002769]
[1763335986636,50.0,137.78,137.77,32.44002769]
[1763335986826,50.0,137.79,137.78,9.78882769]
[1763335987025,50.0,137.79,137.78,19.26067417]
[1763335987230,100.0,137.77,137.76,9.78882769]
[1763335987427,100.0,137.77,137.76,19.26067417]
[1763335987618,0.58,137.91,137.79,22.6512]
[1763335987821,100.0,137.8,137.79,32.44002769]
[1763335988028,50.0,137.8,137.79,32.44002769]
[1763335988230,100.0,137.85,137.84,9.78882769]
[1763335988419,50.0,137.85,137.84,9.78882769]
[1763335988622,50.0,137.87,137.86,32.44002769]
[1763335988824,50.0,137.88,137.86,32.44002769]
[1763335988825,50.0,137.88,137.87,9.78882769]
[1763335989144,50.0,137.88,137.87,35.70890949]
[1763335989444,100.0,137.86,137.85,32.44002769]
[1763335989648,100.0,137.86,137.85,44.25543461]
[1763335989819,9.47184648,137.93,137.85,53.72728109]
[1763335990021,0.1,137.94,137.86,10.46882769]
[1763335990022,100.0,137.87,137.86,10.46882769]
[1763335990540,100.0,137.89,137.88,32.44002769]
[1763335990855,100.0,137.89,137.88,44.22704472]
[1763335991023,100.0,137.89,137.88,42.59187417]
[1763335991433,100.0,137.89,137.88,9.78882769]
[1763335991640,100.0,137.89,137.88,25.14783844]
[1763335991825,100.0,137.89,137.88,19.26067417]
[1763335992622,100.0,137.89,137.88,42.59187417]
[1763335993143,100.0,137.9,137.89,9.78882769]
[1763335993661,100.0,137.9,137.89,25.13693164]
[1763335993851,100.0,137.9,137.89,19.94067417]
[1763335994037,0.1,137.94,137.92,22.6512]
[1763335994238,100.0,137.94,137.93,19.94067417]
[1763335995675,50.0,137.94,137.93,19.94067417]
[1763335995865,50.0,137.94,137.93,9.78882769]
[1763335996033,50.0,137.94,137.93,25.12177367]
[1763335996236,100.0,137.94,137.93,19.97067417]
[1763335996647,100.0,137.94,137.93,19.26067417]
[1763335996858,100.0,137.94,137.93,25.1146519]
[1763335997234,100.0,137.94,137.93,10.49882769]
[1763335997431,100.0,137.94,137.92,22.6512]
[1763335997432,100.58,137.94,137.92,5.84917853]
[1763335997634,100.0,137.87,137.86,5.84917853]
[1763335997939,100.0,137.87,137.86,47.7610527]
[1763335998134,100.0,137.87,137.86,5.84917853]
[1763335998343,100.0,137.84,137.83,5.84917853]
[1763335998648,50.0,137.84,137.83,32.44002769]
[1763335998948,100.0,137.85,137.84,9.78882769]
[1763335999135,100.0,137.85,137.84,10.49882769]
[1763335999756,100.0,137.87,137.86,32.44002769]
[1763336000059,100.0,137.87,137.86,41.91187417]
[1763336000356,100.0,137.87,137.86,42.62187417]
[1763336001936,100.0,137.87,137.86,9.78882769]
[1763336002261,100.0,137.87,137.86,19.26067417]
[1763336002470,100.0,137.87,137.86,25.12916028]
[1763336002846,100.0,137.87,137.83,5.86848611]
[1763336002847,100.0,137.85,137.83,5.86848611]
[1763336003037,100.0,137.85,137.76,0.71]
[1763336003038,100.0,137.82,137.8,5.86848611]
[1763336003239,100.0,137.78,137.76,5.86848611]
[1763336003546,109.47184648,137.78,137.76,5.86848611]
[1763336003860,22.6512,137.83,137.7,34.41516888]
[1763336003861,100.0,137.71,137.7,34.41516888]
[1763336004243,22.6512,137.83,137.7,22.26279657]
[1763336004244,50.0,137.72,137.7,22.26279657]
[1763336004446,100.0,137.74,137.73,32.44002769]
[1763336004648,100.0,137.74,137.73,44.21135234]
[1763336004957,100.0,137.74,137.73,9.78882769]
[1763336005262,50.0,137.68,137.66,15.76823532]
[1763336005445,50.0,137.71,137.7,22.6512]
[1763336005652,50.0,137.71,137.7,31.04539239]
[1763336005855,50.0,137.71,137.7,19.97067417]
[1763336006055,100.0,137.74,137.73,32.44002769]
[1763336006262,50.0,137.74,137.73,41.91187417]
[1763336006441,50.0,137.78,137.77,22.6512]
[1763336006644,100.0,137.78,137.77,41.91187417]
[1763336007383,100.0,137.78,137.77,42.62187417]
[1763336007584,100.0,137.78,137.77,33.15002769]
[1763336007862,100.0,137.78,137.77,32.44002769]
[1763336008086,100.0,137.78,137.77,41.91187417]
[1763336009771,50.0,137.79,137.78,32.44002769]
[1763336009972,100.0,137.79,137.78,54.39409445]
[1763336010676,100.0,137.79,137.78,42.62187417]
[1763336010871,50.0,137.79,137.78,42.62187417]
[1763336011181,100.0,137.8,137.79,9.78882769]
[1763336011559,100.0,137.8,137.79,19.26067417]
[1763336012159,100.0,137.8,137.79,19.93067417]
[1763336012465,50.0,137.8,137.79,31.72499109]
[1763336012669,100.0,137.8,137.79,19.93067417]
[1763336012963,50.0,137.83,137.82,32.44002769]
[1763336013169,100.0,137.84,137.83,9.78882769]
[1763336013383,100.0,137.84,137.83,22.25563463]
[1763336013557,100.0,137.84,137.83,31.72748111]
[1763336014404,22.55,138.01,137.86,22.6512]
[1763336014678,22.55,138.01,137.83,29.40252065]
[1763336014679,50.0,137.91,137.9,9.78882769]
[1763336014849,0.1,138.01,137.91,32.44002769]
[1763336015047,50.0,137.93,137.92,25.49049821]